bitfinex-derivatives/quotes_BTCF0:USTF0_20251025
["timestamp","ask_amount","ask_price","bid_price","bid_amount"]
[1761373844513,0.19562978,111340.0,111330.0,0.05859394]
[1761373847222,0.17147151,111340.0,111330.0,0.05859394]
[1761373847523,0.00368,111340.0,111330.0,0.05859394]
[1761373847724,0.24756,111340.0,111330.0,0.05859394]
[1761373862135,0.2716839,111340.0,111330.0,0.05859394]
[1761373866339,0.39947541,111340.0,111330.0,0.05859394]
[1761373866744,0.3995319,111340.0,111330.0,0.18644194]
[1761373867341,0.43186975,111340.0,111330.0,0.18644194]
[1761373868243,0.40774585,111340.0,111330.0,0.18644194]
[1761373868548,0.06023532,111340.0,111330.0,0.18644194]
[1761373868838,0.02421747,111340.0,111330.0,0.78644194]
[1761373869033,0.02421747,111340.0,111330.0,0.81871266]
[1761373871452,0.06023532,111350.0,111340.0,0.05899]
[1761373871653,0.18808332,111350.0,111340.0,0.186838]
[1761373872854,0.18908332,111350.0,111340.0,0.186838]
[1761373873154,0.06123532,111350.0,111340.0,0.186838]
[1761373873451,0.06323532,111350.0,111340.0,0.186838]
[1761373874051,0.19108332,111350.0,111340.0,0.186838]
[1761373874254,0.05955532,111350.0,111340.0,0.314686]
[1761373874449,0.003,111350.0,111340.0,1.26207672]
[1761373874756,0.02421747,111370.0,111360.0,0.05899]
[1761373875056,0.02789747,111380.0,111370.0,0.05899]
[1761373875254,0.02789747,111380.0,111370.0,0.186838]
[1761373876358,0.131528,111380.0,111370.0,0.186838]
[1761373876858,0.135528,111380.0,111370.0,0.186838]
[1761373877358,0.136528,111380.0,111370.0,0.186838]
[1761373878257,0.136528,111380.0,111370.0,0.19567594]
[1761373884160,0.00868,111380.0,111370.0,0.19567594]
[1761373884362,0.136528,111380.0,111370.0,0.19567594]
[1761373885153,0.00868,111380.0,111370.0,0.19567594]
[1761373885355,0.00684,111380.0,111370.0,0.19567594]
[1761373885860,0.00868,111380.0,111370.0,0.19567594]
[1761373888864,0.00868,111380.0,111370.0,0.06782794]
[1761373889062,0.00868,111380.0,111370.0,0.19567594]
[1761373890353,0.136528,111380.0,111370.0,0.19567594]
[1761373896666,0.00868,111380.0,111370.0,0.19567594]
[1761373896966,0.136528,111380.0,111370.0,0.19567594]
[1761373900562,0.00868,111380.0,111370.0,0.19567594]
[1761373900871,0.136528,111380.0,111370.0,0.19567594]
[1761373902370,0.16074547,111380.0,111370.0,0.19567594]
[1761373906570,0.19308332,111380.0,111370.0,0.19567594]
[1761373906962,0.16074547,111380.0,111370.0,0.19567594]
[1761373907270,0.19308332,111380.0,111370.0,0.19567594]
[1761373908974,0.19308332,111380.0,111370.0,0.06782794]
[1761373909273,0.19308332,111380.0,111370.0,0.19567594]
[1761373909974,0.16074547,111380.0,111370.0,0.19567594]
[1761373911276,0.16075874,111380.0,111370.0,0.19567594]
[1761373912276,0.19309659,111380.0,111370.0,0.19567594]
[1761373912478,0.16075874,111380.0,111370.0,0.19567594]
[1761373912680,0.19309659,111380.0,111370.0,0.19567594]
[1761373913374,0.16075874,111380.0,111370.0,0.19567594]
[1761373913878,0.19309659,111380.0,111370.0,0.19567594]
[1761373914380,0.16075874,111380.0,111370.0,0.19567594]
[1761373914572,0.19309659,111380.0,111370.0,0.19567594]
[1761373914777,0.16075874,111380.0,111370.0,0.19567594]
[1761373916780,0.16075874,111380.0,111370.0,0.22796728]
[1761373922679,0.02923074,111380.0,111370.0,0.44559538]
[1761373922982,0.0670083,111390.0,111380.0,0.05874]
[1761373923282,0.01856869,111390.0,111380.0,0.629436]
[1761373923782,0.00368,111400.0,111390.0,0.05874]
[1761373923973,0.00368,111400.0,111390.0,0.186588]
[1761373924381,0.05211961,111400.0,111390.0,0.186588]
[1761373924581,0.17996761,111400.0,111390.0,0.186588]
[1761373924880,0.05611961,111400.0,111390.0,0.186588]
[1761373925585,0.00768,111400.0,111390.0,0.186588]
[1761373926484,0.00584,111400.0,111390.0,0.186588]
[1761373926785,0.00584,111400.0,111390.0,0.18643282]
[1761373927787,0.00768,111400.0,111390.0,0.05874]
[1761373936577,0.00768,111400.0,111390.0,0.18643282]
[1761373944490,0.00768,111400.0,111390.0,0.05874]
[1761373949303,0.13537282,111400.0,111390.0,0.05874]
[1761373954310,0.16766348,111400.0,111390.0,0.05874]
[1761373983932,0.03997066,111400.0,111390.0,0.05874]
[1761373984432,0.02820327,111400.0,111390.0,0.21872416]
[1761373984635,0.02820327,111400.0,111390.0,0.09103134]
[1761373985728,0.03188327,111400.0,111390.0,0.09103134]
[1761373986428,0.15957609,111400.0,111390.0,0.09103134]
[1761373986828,0.15960444,111400.0,111390.0,0.09103134]
[1761373988037,0.28732561,111400.0,111390.0,0.05874]
[1761373988336,0.15960444,111400.0,111390.0,0.05874]
[1761373994751,0.15960168,111400.0,111390.0,0.05874]
[1761374000457,0.15960168,111400.0,111390.0,0.18646117]
[1761374000659,1.03793417,111400.0,111360.0,0.04843701]
[1761374000859,0.00368,111360.0,111350.0,0.03442]
[1761374001055,0.62685548,111360.0,111350.0,0.02118]
[1761374001255,1.24304195,111360.0,111340.0,0.05675]
[1761374001455,0.15553731,111350.0,111340.0,0.05675]
[1761374001658,0.17644104,111350.0,111340.0,0.05675]
[1761374002360,0.1523049,111350.0,111340.0,0.05675]
[1761374002560,0.88002607,111350.0,111330.0,0.05686394]
[1761374002759,0.47121731,111340.0,111330.0,0.05686394]
[1761374003060,0.61984221,111340.0,111330.0,0.05686394]
[1761374003249,0.59570607,111340.0,111330.0,0.05686394]
[1761374004264,0.59570607,111340.0,111330.0,0.05786394]
[1761374007156,0.60570607,111340.0,111330.0,0.05786394]
[1761374014062,0.59570607,111340.0,111330.0,0.05786394]
[1761374014261,0.4681049,111340.0,111330.0,0.05786394]
[1761374014461,0.1523049,111340.0,111330.0,0.05786394]
[1761374014766,0.59582607,111340.0,111330.0,0.05786394]
[1761374017769,0.28002607,111340.0,111330.0,0.05786394]
[1761374018068,0.59582607,111340.0,111330.0,0.05786394]
[1761374020369,0.28002607,111340.0,111330.0,0.05786394]
[1761374024872,0.1523049,111340.0,111330.0,0.05786394]
[1761374026464,0.13140117,111340.0,111330.0,0.05786394]
[1761374026776,0.15251973,111340.0,111330.0,0.05786394]
[1761374028371,0.17658575,111340.0,111330.0,0.05786394]
[1761374029875,0.30430692,111340.0,111330.0,0.05786394]
[1761374030277,0.31242243,111340.0,111330.0,0.05786394]
[1761374031369,0.36086204,111340.0,111330.0,0.05786394]
[1761374032276,0.32868051,111340.0,111330.0,0.05786394]
[1761374032576,0.36094391,111340.0,111330.0,0.05786394]
[1761374032977,0.23322274,111340.0,111330.0,0.05786394]
[1761374035481,0.10550157,111340.0,111330.0,0.18558511]
[1761374035772,0.05706196,111340.0,111330.0,0.18558511]
[1761374035978,0.18478313,111340.0,111330.0,0.18558511]
[1761374036371,0.05706196,111340.0,111330.0,0.18558511]
[1761374038073,0.18478313,111340.0,111330.0,0.18558511]
[1761374040176,0.05706196,111340.0,111330.0,0.18558511]
[1761374040679,0.05522196,111340.0,111330.0,0.18558511]
[1761374040884,0.05646573,111340.0,111330.0,0.31330628]
[1761374041075,0.05646573,111340.0,111330.0,0.40311848]
[1761374041076,0.01162847,111340.0,111330.0,0.40311848]
[1761374041276,0.0359434,111360.0,111350.0,0.05929]
[1761374041477,0.0359434,111360.0,111350.0,0.18701117]
[1761374041780,0.16366457,111360.0,111350.0,0.18701117]
[1761374042786,0.16366457,111360.0,111350.0,0.05929]
[1761374043084,0.13340117,111360.0,111350.0,0.05929]
[1761374043584,0.26212234,111360.0,111350.0,0.05929]
[1761374048782,0.13449812,111360.0,111350.0,0.05929]
[1761374053091,0.155841,111360.0,111350.0,0.05929]
[1761374054794,0.02802288,111360.0,111350.0,0.05929]
[1761374058496,0.155841,111360.0,111350.0,0.05929]
[1761374059092,0.02802288,111360.0,111350.0,0.05929]
[1761374060405,0.155841,111360.0,111350.0,0.05929]
[1761374063697,0.1881044,111360.0,111350.0,0.05929]
[1761374065699,0.31592252,111360.0,111340.0,0.01351]
[1761374065903,0.00368,111340.0,111330.0,0.05801394]
[1761374066103,0.18376152,111340.0,111330.0,0.05801394]
[1761374066402,0.2051044,111340.0,111330.0,0.05801394]
[1761374067600,0.2051044,111340.0,111330.0,0.05901394]
[1761374068503,0.2061044,111340.0,111330.0,0.05901394]
[1761374070303,0.173841,111340.0,111330.0,0.05901394]
[1761374070803,0.2061044,111340.0,111330.0,0.05901394]
[1761374071290,0.173841,111340.0,111330.0,0.05901394]
[1761374073104,0.469561,111340.0,111330.0,0.05901394]
[1761374087512,0.469441,111340.0,111330.0,0.05901394]
[1761374090919,0.469401,111340.0,111330.0,0.05901394]
[1761374091208,0.02602288,111340.0,111330.0,0.18683206]
[1761374091404,0.34158288,111340.0,111330.0,0.18683206]
[1761374091600,0.02234288,111340.0,111330.0,0.18683206]
[1761374092114,0.02602288,111340.0,111330.0,0.18683206]
[1761374092507,0.02602288,111340.0,111330.0,0.05901394]
[1761374095313,0.00284,111340.0,111330.0,0.18683206]
[1761374095616,0.02234288,111340.0,111330.0,0.18683206]
[1761374101329,0.02418288,111340.0,111330.0,0.18683206]
[1761374101518,0.02602288,111340.0,111330.0,0.05901394]
[1761374107640,0.153841,111340.0,111330.0,0.05901394]
[1761374108833,0.15387559,111340.0,111330.0,0.05901394]
[1761374110437,0.2817283,111340.0,111330.0,0.05901394]
[1761374116437,0.15387559,111340.0,111330.0,0.05901394]
[1761374118646,0.1780889,111340.0,111330.0,0.05901394]
[1761374118837,0.15387559,111340.0,111330.0,0.05901394]
[1761374119446,0.1780889,111340.0,111330.0,0.05901394]
[1761374134059,0.13253271,111340.0,111330.0,0.05901394]
[1761374134259,0.17795647,111340.0,111330.0,0.05901394]
[1761374152979,0.30580918,111340.0,111330.0,0.05901394]
[1761374156090,0.17795647,111340.0,111330.0,0.05901394]
[1761374157985,0.30580918,111340.0,111330.0,0.05901394]
[1761374159594,0.17795647,111340.0,111330.0,0.05901394]
[1761374162293,0.30580918,111340.0,111330.0,0.05901394]
[1761374168702,0.17798172,111340.0,111330.0,0.02346394]
[1761374168893,0.21024512,111340.0,111330.0,0.02346394]
[1761374169093,0.17798172,111340.0,111330.0,0.02346394]
[1761374169499,0.17798172,111340.0,111330.0,0.04581394]
[1761374172498,0.17798172,111340.0,111330.0,0.05977394]
[1761374174003,0.17798172,111340.0,111330.0,0.00111394]
[1761374174205,0.65904515,111340.0,111330.0,0.00111394]
[1761374174398,0.67522136,111340.0,111330.0,0.00111394]
[1761374175206,0.5473434,111340.0,111330.0,0.00111394]
[1761374175604,0.55652305,111340.0,111330.0,0.00111394]
[1761374176705,0.68440101,111340.0,111330.0,0.00111394]
[1761374177603,0.55652305,111340.0,111330.0,0.00111394]
[1761374177910,1.15652305,111340.0,111330.0,0.00111394]
[1761374178210,0.55652305,111340.0,111310.0,0.0579]
[1761374178510,0.13155796,111320.0,111310.0,0.0579]
[1761374178704,0.46794379,111320.0,111310.0,0.0579]
[1761374179207,0.46800724,111320.0,111310.0,0.0579]
[1761374179709,0.46800724,111320.0,111310.0,0.07198002]
[1761374180103,0.46800724,111320.0,111310.0,0.0629]
[1761374184009,0.34012928,111320.0,111310.0,0.0629]
[1761374186407,0.34012928,111320.0,111310.0,0.19077796]
[1761374188416,0.02308928,111320.0,111310.0,0.19077796]
[1761374188612,0.02124928,111320.0,111310.0,0.19077796]
[1761374189011,0.02308928,111320.0,111310.0,0.19077796]
[1761374193220,0.02492928,111320.0,111310.0,0.19077796]
[1761374193714,0.02492928,111320.0,111310.0,0.0629]
[1761374197214,0.15280724,111320.0,111310.0,0.0629]
[1761374197815,0.02492928,111320.0,111310.0,0.0629]
[1761374198113,0.02418057,111330.0,111320.0,0.05865]
[1761374198312,0.03224077,111350.0,111340.0,0.01315]
[1761374198521,0.07459077,111370.0,111360.0,0.05865]
[1761374198815,0.20246873,111370.0,111360.0,0.05865]
[1761374199222,0.20252432,111370.0,111360.0,0.05865]
[1761374200715,0.20252432,111370.0,111360.0,0.06365]
[1761374200915,0.20252432,111370.0,111360.0,0.06465]
[1761374201423,0.17128355,111370.0,111360.0,0.05965]
[1761374201622,0.04340559,111370.0,111360.0,0.05865]
[1761374201822,0.04440559,111370.0,111360.0,0.05865]
[1761374202410,0.04640559,111370.0,111360.0,0.05865]
[1761374203829,0.04440559,111370.0,111360.0,0.05865]
[1761374204327,0.04340559,111370.0,111360.0,0.05865]
[1761374204628,0.04640559,111370.0,111360.0,0.05865]
[1761374207330,0.17428355,111370.0,111360.0,0.05865]
[1761374210135,0.19613783,111370.0,111360.0,0.05865]
[1761374222638,0.06825987,111370.0,111360.0,0.05865]
[1761374222837,0.19613783,111370.0,111360.0,0.05865]
[1761374225343,0.2283786,111370.0,111360.0,0.05865]
[1761374226155,0.19613783,111370.0,111360.0,0.05865]
[1761374226356,0.2283786,111370.0,111360.0,0.05865]
[1761374228455,0.24457744,111370.0,111360.0,0.05865]
[1761374228756,0.24449264,111370.0,111360.0,0.05865]
[1761374233957,0.04446,111350.0,111330.0,0.0828382]
[1761374234262,0.33241867,111340.0,111330.0,0.05674]
[1761374234555,0.35427295,111340.0,111330.0,0.05674]
[1761374235350,0.35427295,111340.0,111330.0,0.05874]
[1761374235849,0.35427295,111340.0,111330.0,0.05674]
[1761374236050,0.35427295,111340.0,111330.0,0.05874]
[1761374236249,0.40271256,111340.0,111330.0,0.04559]
[1761374238367,0.35427295,111340.0,111330.0,0.04559]
[1761374241963,0.32195619,111340.0,111330.0,0.04559]
[1761374246959,0.32195619,111340.0,111330.0,0.0592]
[1761374255976,0.06636987,111340.0,111330.0,0.0592]
[1761374256166,0.04446987,111340.0,111330.0,0.18699316]
[1761374257574,0.02190987,111340.0,111330.0,0.18699316]
[1761374257977,0.02190987,111340.0,111330.0,0.31478632]
[1761374258579,0.02190987,111340.0,111330.0,0.18699316]
[1761374258782,0.02190987,111340.0,111330.0,0.91478632]
[1761374259379,0.02190987,111340.0,111330.0,0.78699316]
[1761374260492,0.02190987,111340.0,111330.0,0.18699316]
[1761374263380,0.02190987,111340.0,111330.0,0.31478632]
[1761374263581,0.02190987,111340.0,111330.0,0.63106632]
[1761374263788,0.02190987,111340.0,111330.0,0.67933452]
[1761374263789,5.559e-05,111340.0,111330.0,0.67933452]
[1761374265490,5.559e-05,111340.0,111330.0,1.27933452]
[1761374267192,5.559e-05,111340.0,111330.0,1.23106632]
[1761374269793,5.559e-05,111340.0,111330.0,1.32087872]
[1761374270091,5.559e-05,111340.0,111330.0,1.19308556]
[1761374270294,5.559e-05,111340.0,111330.0,1.32087872]
[1761374270687,5.559e-05,111340.0,111330.0,0.72087872]
[1761374273087,5.559e-05,111340.0,111330.0,0.59308556]
[1761374275097,5.559e-05,111340.0,111330.0,0.66634494]
[1761374275796,5.559e-05,111340.0,111330.0,1.26634494]
[1761374279604,5.559e-05,111340.0,111330.0,1.17653254]
[1761374281707,0.04458559,111340.0,111330.0,0.55154136]
[1761374282697,0.02204559,111340.0,111330.0,0.55154136]
[1761374283503,5.559e-05,111340.0,111330.0,0.55154136]
[1761374284399,5.559e-05,111340.0,111330.0,0.64135416]
[1761374286804,5.559e-05,111340.0,111330.0,1.24135416]
[1761374287808,0.04403559,111340.0,111330.0,1.15154136]
[1761374289111,0.02149559,111340.0,111330.0,1.15154136]
[1761374289312,0.04298822,111340.0,111330.0,1.15154136]
[1761374289812,0.02149559,111340.0,111330.0,1.15154136]
[1761374290213,0.04299066,111340.0,111330.0,1.15154136]
[1761374290912,0.04299066,111340.0,111330.0,1.15156866]
[1761374293519,0.02155066,111340.0,111330.0,1.15156866]
[1761374294623,0.02155066,111340.0,111330.0,1.0237482]
[1761374294919,0.02155066,111340.0,111330.0,1.10330046]
[1761374295721,0.02155066,111340.0,111330.0,1.15180266]
[1761374296123,0.02155066,111340.0,111330.0,1.10330046]
[1761374296826,0.02155066,111340.0,111330.0,0.50330046]
[1761374301831,0.02155066,111340.0,111330.0,1.10330046]
[1761374305231,0.02155066,111340.0,111330.0,1.151804]
[1761374306134,0.02155066,111340.0,111330.0,1.10330046]
[1761374306935,0.02155229,111340.0,111330.0,0.50330046]
[1761374311137,0.02155229,111340.0,111330.0,0.59311326]
[1761374311537,0.02155229,111340.0,111330.0,0.64162192]
[1761374311837,0.02155229,111340.0,111330.0,1.24162192]
[1761374312037,0.02155229,111340.0,111330.0,1.19311326]
[1761374314740,0.02155229,111340.0,111330.0,1.24162287]
[1761374315044,0.02155229,111340.0,111330.0,1.19311326]
[1761374331050,0.0242286,111360.0,111330.0,0.72093372]
[1761374331256,0.04572515,111360.0,111350.0,0.18721046]
[1761374331458,0.04572515,111360.0,111350.0,0.50269046]
[1761374332760,0.04672515,111360.0,111350.0,0.50269046]
[1761374333961,0.04772515,111360.0,111350.0,0.50269046]
[1761374334456,0.04672515,111360.0,111350.0,0.50369046]
[1761374335156,0.04672515,111360.0,111350.0,0.37587]
[1761374335356,0.02249655,111360.0,111350.0,0.50369046]
[1761374344766,0.04515655,111360.0,111350.0,0.50369046]
[1761374344968,0.06640655,111360.0,111350.0,0.37587]
[1761374352782,0.19420201,111360.0,111350.0,0.50366546]
[1761374353078,0.19420201,111360.0,111350.0,0.48071546]
[1761374353377,0.43275384,111360.0,111350.0,0.04514]
[1761374353577,0.43275384,111360.0,111350.0,0.05841]
[1761374353777,0.38431423,111360.0,111350.0,0.05841]
[1761374354978,0.38431423,111360.0,111350.0,0.04514]
[1761374356176,0.38431423,111360.0,111350.0,0.05841]
[1761374358384,0.98431423,111360.0,111350.0,0.05841]
[1761374359376,0.97618343,111360.0,111350.0,0.05841]
[1761374361185,1.29178343,111360.0,111350.0,0.05841]
[1761374361878,0.01154,111350.0,111320.0,0.03549]
[1761374362087,0.17170546,111330.0,111320.0,0.05685]
[1761374362384,0.19320201,111330.0,111320.0,0.18464546]
[1761374363283,0.06540655,111330.0,111320.0,0.18464546]
[1761374363485,0.19320201,111330.0,111320.0,0.18464546]
[1761374363685,0.19320201,111330.0,111320.0,0.19064546]
[1761374364081,0.19320201,111330.0,111320.0,0.18464546]
[1761374364279,0.02149655,111330.0,111320.0,0.31444092]
[1761374364675,0.02149655,111330.0,111320.0,0.18664546]
[1761374365784,0.02149655,111330.0,111320.0,0.31444092]
[1761374376195,0.17069546,111340.0,111320.0,0.31444092]
[1761374376395,0.19213959,111340.0,111330.0,0.18557546]
[1761374377188,0.19213959,111340.0,111330.0,0.50153546]
[1761374377593,0.19313959,111340.0,111330.0,0.50153546]
[1761374382289,0.21731941,111340.0,111330.0,0.50153546]
[1761374403624,0.08952395,111340.0,111330.0,0.50153546]
[1761374403929,0.04662395,111340.0,111330.0,0.50153546]
[1761374404218,0.04662395,111340.0,111330.0,0.76764318]
[1761374404219,0.02244413,111340.0,111330.0,0.76764318]
[1761374405823,0.02144413,111340.0,111330.0,0.76764318]
[1761374406018,0.02144413,111340.0,111330.0,0.76964318]
[1761374407323,0.19474528,111360.0,111330.0,0.76964318]
[1761374407520,0.21629219,111360.0,111350.0,0.18523546]
[1761374407825,0.21629219,111360.0,111350.0,0.50095546]
[1761374408220,0.08849673,111360.0,111350.0,0.37316]
[1761374408420,0.21629219,111360.0,111350.0,0.50095546]
[1761374408629,0.21729219,111360.0,111350.0,0.50095546]
[1761374409328,0.08949673,111360.0,111350.0,0.37316]
[1761374409521,0.21829219,111360.0,111350.0,0.50095546]
[1761374410128,0.21829219,111360.0,111350.0,0.37316]
[1761374414726,0.21829916,111360.0,111350.0,0.37316]
[1761374418426,0.09049673,111360.0,111350.0,0.37316]
[1761374418631,0.21829916,111360.0,111350.0,0.37316]
[1761374433342,0.25061592,111360.0,111350.0,0.37316]
[1761374434741,0.12281349,111360.0,111350.0,0.37316]
[1761374434942,0.04772673,111360.0,111350.0,0.50096243]
[1761374435641,0.04772673,111360.0,111350.0,0.37316]
[1761374437444,0.04772673,111360.0,111350.0,0.50096243]
[1761374439343,0.04772673,111360.0,111350.0,0.37316]
[1761374442245,0.06989673,111360.0,111350.0,0.37316]
[1761374444644,0.04772673,111360.0,111350.0,0.37316]
[1761374448050,0.04772673,111360.0,111350.0,0.50096243]
[1761374454845,0.02354691,111360.0,111350.0,0.59075923]
[1761374455052,0.02354691,111360.0,111350.0,1.23925899]
[1761374460261,0.002,111360.0,111350.0,1.23925899]
[1761374461261,0.002,111360.0,111350.0,0.63925899]
[1761374463462,0.002,111360.0,111350.0,0.63893899]
[1761374474669,0.002,111360.0,111350.0,0.32353899]
[1761374474862,0.002,111360.0,111350.0,0.63893899]
[1761374476066,0.002,111360.0,111350.0,0.54914219]
[1761374476267,0.002,111360.0,111350.0,0.63893919]
[1761374476668,0.002,111360.0,111350.0,0.63890278]
[1761374483269,0.02342055,111360.0,111350.0,0.63890278]
[1761374485975,0.02342055,111360.0,111350.0,0.62300278]
[1761374486273,0.02342055,111360.0,111350.0,0.63643278]
[1761374488278,0.02342055,111360.0,111350.0,0.58793302]
[1761374488982,0.02342055,111360.0,111350.0,0.63641502]
[1761374489366,0.02342055,111360.0,111350.0,0.58793302]
[1761374504791,0.02342055,111360.0,111350.0,0.49813602]
[1761374520009,0.06696055,111360.0,111350.0,0.49813602]
[1761374524020,0.04453055,111360.0,111350.0,0.49813602]
[1761374528821,0.19442657,111360.0,111350.0,0.10344452]
[1761374529026,0.32219259,111360.0,111350.0,0.41876452]
[1761374529320,0.02342055,111360.0,111350.0,0.54653054]
[1761374531125,0.02342055,111360.0,111350.0,0.49805602]
[1761374536733,0.02342055,111360.0,111350.0,0.49806234]
[1761374537925,0.02417982,111380.0,111370.0,0.0136]
[1761374538117,0.01204089,111380.0,111370.0,0.50163234]
[1761374538317,0.0116,111410.0,111380.0,0.05854]
[1761374538318,0.1716891,111410.0,111380.0,0.05854]
[1761374538517,0.07564676,111400.0,111390.0,0.37386]
[1761374538725,0.18781195,111410.0,111400.0,0.05854]
[1761374538726,0.07564676,111410.0,111400.0,0.05854]
[1761374539121,0.04333,111410.0,111400.0,0.05854]
[1761374539825,0.17110234,111410.0,111400.0,0.05854]
[1761374540030,0.04333,111410.0,111400.0,0.06754]
[1761374540431,0.04433,111410.0,111400.0,0.06754]
[1761374540630,0.04433,111410.0,111400.0,0.05854]
[1761374541128,0.04333,111410.0,111400.0,0.05854]
[1761374541332,0.04433,111410.0,111400.0,0.05854]
[1761374544130,0.64433,111410.0,111400.0,0.05854]
[1761374548128,0.04433,111410.0,111400.0,0.05854]
[1761374548333,0.04433,111410.0,111400.0,0.18631234]
[1761374550041,0.06535986,111410.0,111400.0,0.18631234]
[1761374551135,0.04433,111410.0,111400.0,0.18631234]
[1761374551322,0.04433,111410.0,111400.0,0.05854]
[1761374554334,0.05774,111410.0,111400.0,0.05854]
[1761374554928,0.05774,111410.0,111400.0,0.04494]
[1761374559140,0.07876176,111410.0,111400.0,0.04494]
[1761374560335,0.2065341,111410.0,111400.0,0.04494]
[1761374572752,0.2065341,111410.0,111390.0,0.33803]
[1761374572957,0.05779,111400.0,111390.0,0.36092]
[1761374573251,0.07881176,111400.0,111390.0,0.50167234]
[1761374573652,0.06540176,111400.0,111390.0,0.50167234]
[1761374574446,0.06540176,111400.0,111390.0,0.50367234]
[1761374574648,0.06640176,111400.0,111390.0,0.50367234]
[1761374574849,0.06640176,111400.0,111390.0,0.18635234]
[1761374575154,0.06640176,111400.0,111390.0,0.18835234]
[1761374577462,0.02202176,111400.0,111390.0,0.23682686]
[1761374578553,0.02202176,111400.0,111390.0,0.55202686]
[1761374583159,0.02202176,111400.0,111390.0,0.6797992]
[1761374583647,0.02202176,111400.0,111390.0,0.769564]
[1761374583851,0.001,111400.0,111390.0,0.72108948]
[1761374588770,0.001,111400.0,111390.0,1.32108948]
[1761374591463,0.001,111400.0,111390.0,1.36946191]
[1761374594970,0.001,111400.0,111390.0,0.76946191]
[1761374596773,0.001,111400.0,111390.0,0.76921885]
[1761374600075,0.001,111400.0,111390.0,1.36921885]
[1761374601981,0.001,111400.0,111390.0,1.27945405]
[1761374602683,0.02209,111400.0,111390.0,1.27945405]
[1761374603787,0.001,111400.0,111390.0,1.27945405]
[1761374604085,0.001,111400.0,111390.0,1.23108162]
[1761374607088,0.02209,111400.0,111390.0,1.23108162]
[1761374609989,0.02209,111400.0,111390.0,0.63108162]
[1761374610289,0.001,111400.0,111390.0,0.63108162]
[1761374615091,0.001,111400.0,111390.0,1.23108162]
[1761374621797,0.02205884,111400.0,111390.0,1.23108162]
[1761374622196,0.001,111400.0,111390.0,1.23108162]
[1761374625095,0.02205905,111400.0,111390.0,1.23108162]
[1761374625405,0.001,111400.0,111390.0,1.23108162]
[1761374628399,0.04479,111400.0,111390.0,0.31588162]
[1761374628600,0.06584953,111400.0,111390.0,0.50335081]
[1761374630095,0.06584953,111400.0,111390.0,0.3757]
[1761374630405,0.06584953,111400.0,111390.0,0.50335081]
[1761374633206,0.06584953,111400.0,111390.0,0.55182069]
[1761374633405,0.06584953,111400.0,111390.0,0.50335081]
[1761374633904,0.20621034,111400.0,111390.0,0.55182069]
[1761374634297,0.07855953,111400.0,111390.0,0.55182069]
[1761374634498,0.07855953,111400.0,111390.0,0.42416988]
[1761374634698,0.07855953,111400.0,111390.0,0.55182069]
[1761374635100,0.20621034,111400.0,111390.0,0.55182069]
[1761374635300,0.07855953,111400.0,111390.0,0.55182069]
[1761374637006,0.20621034,111400.0,111390.0,0.23670069]
[1761374639195,0.20621034,111400.0,111390.0,0.18823081]
[1761374639399,0.20621034,111400.0,111390.0,0.06058]
[1761374639599,0.20621034,111400.0,111390.0,0.18823081]
[1761374640007,0.20621034,111400.0,111390.0,0.06058]
[1761374640204,0.20621034,111400.0,111390.0,0.0476]
[1761374641111,0.20621034,111400.0,111390.0,0.17525081]
[1761374641310,0.20621034,111400.0,111390.0,0.0476]
[1761374642005,0.20621034,111400.0,111390.0,0.17525081]
[1761374642308,0.20621034,111400.0,111390.0,0.18801081]
[1761374642706,0.19350034,111400.0,111390.0,0.18801081]
[1761374643308,0.06584953,111400.0,111390.0,0.18801081]
[1761374645012,0.66584953,111400.0,111390.0,0.18801081]
[1761374650213,0.79350034,111400.0,111390.0,0.18801081]
[1761374650914,0.80692034,111400.0,111390.0,0.18801081]
[1761374653913,0.80692034,111400.0,111390.0,0.17525081]
[1761374656817,0.20692034,111400.0,111390.0,0.17525081]
[1761374658718,0.07926953,111400.0,111390.0,0.0476]
[1761374660219,0.67926953,111400.0,111390.0,0.0476]
[1761374665721,0.67926953,111400.0,111390.0,0.09606988]
[1761374666126,0.67926953,111400.0,111390.0,0.0476]
[1761374666721,0.67934527,111400.0,111390.0,0.0476]
[1761374667224,0.67934527,111400.0,111390.0,0.09606988]
[1761374669325,0.66592527,111400.0,111390.0,0.23653292]
[1761374671828,0.06592527,111400.0,111390.0,0.36423596]
[1761374672322,0.06592527,111400.0,111390.0,0.23653292]
[1761374678517,0.02213527,111400.0,111390.0,0.36423596]
[1761374678923,0.001,111400.0,111390.0,0.31576608]
[1761374679925,0.001,111400.0,111390.0,0.40553058]
[1761374688137,0.001,111400.0,111390.0,0.4539229]
[1761374694134,0.001,111400.0,111390.0,0.40553058]
[1761374698742,0.04525,111400.0,111390.0,0.40553058]
[1761374698945,0.04525,111400.0,111390.0,0.40553078]
[1761374700744,0.02352,111400.0,111390.0,0.40553078]
[1761374701244,0.04525,111400.0,111390.0,0.31576608]
[1761374701851,0.02352,111400.0,111390.0,0.31576608]
[1761374702050,0.02352,111400.0,111390.0,0.40553078]
[1761374703150,0.001,111400.0,111390.0,0.40553078]
[1761374707649,0.001,111400.0,111390.0,0.47022435]
[1761374713953,5.5e-07,111400.0,111390.0,0.47022435]
[1761374714952,5.5e-07,111400.0,111390.0,0.40553078]
[1761374715853,5.5e-07,111400.0,111390.0,0.48649842]
[1761374716052,5.5e-07,111400.0,111390.0,0.47012956]
[1761374716253,5.5e-07,111400.0,111390.0,0.40553078]
[1761374716655,5.5e-07,111400.0,111390.0,0.47012057]
[1761374718851,5.5e-07,111400.0,111390.0,0.59755097]
[1761374719554,0.01297,111430.0,111420.0,0.05724]
[1761374719555,0.04362,111430.0,111420.0,0.05724]
[1761374719756,0.06449431,111430.0,111420.0,0.67593232]
[1761374721052,0.06449431,111430.0,111420.0,0.62750432]
[1761374722556,0.06449431,111430.0,111420.0,0.68093232]
[1761374724250,0.04362,111430.0,111420.0,0.68093232]
[1761374724552,0.02178,111430.0,111420.0,0.80854448]
[1761374725054,0.02178,111430.0,111420.0,0.68093232]
[1761374725358,0.02178,111430.0,111420.0,0.80854448]
[1761374726052,0.04362,111430.0,111420.0,0.68093232]
[1761374727558,0.02178,111430.0,111420.0,0.68093232]
[1761374728260,0.04362,111430.0,111420.0,0.68093232]
[1761374731462,0.02178,111430.0,111420.0,0.68093232]
[1761374732149,0.04362,111430.0,111420.0,0.425708]
[1761374732447,0.04362,111430.0,111420.0,0.68093232]
[1761374739868,0.04362,111430.0,111420.0,0.36589232]
[1761374740070,0.04362,111430.0,111420.0,0.68085232]
[1761374740366,0.05642,111430.0,111420.0,0.61957432]
[1761374741368,0.05642,111430.0,111420.0,0.63244432]
[1761374741565,0.05642,111430.0,111420.0,0.61957432]
[1761374741762,0.05642,111430.0,111420.0,0.66800232]
[1761374745173,0.07727121,111430.0,111420.0,0.66800232]